Cogmind - Beta 15 @@@ ROGUE MODE // 2025.10.19 @ 08:40:17 Player: aliser Result: Destroyed by B-75 Beast with Heavy Machine Gun Performance ------------- Evolutions (4) 2000 Regions Visited (8) 1600 Robots Destroyed (96) 480 Value Destroyed (4023) 4023 Prototype IDs (5) 100 Alien Tech Used (0) 0 Bonus (1293) 1293 TOTAL SCORE: 9496 Bonus ------- High Alert Combat Kills 428 Follower Combat Kills 165 Entered Garrisons 200 Entered DSFs 500 Cogmind --------- Core Integrity 0/850 Matter 212/300 Energy 76/340 System Corruption 20% Temperature Cool (29) Movement Treading (163) Location -6/Garrison Parts ------- > --- POWER (1) -------- Particle Reactor > --- PROPULSION (4) --- Light Treads Light Treads Armored Heavy Treads > --- UTILITY (8) ------ Improved Heat Sink Large Storage Unit Weapon Cycler Advanced Thermal Shield Advanced Force Field > --- WEAPON (2) ------- Quantum Rifle Quantum Rifle > --- INVENTORY (15) --- Improved Deuterium Engine Light Angular Momentum Engine Compact Battery (200) Matter Compressor (0) Advanced Reaction Control System Relay Coupler [Swarmer] (27) Relay Coupler [Swarmer] (26) Relay Coupler [Grunt] (23) Relay Coupler [Brawler] (30) High-powered Tractor Beam Dispersion Rifle Dispersion Rifle Flak Gun Remote Datajack Powered Hammer Peak State ------------ > --- POWER ------------ Particle Reactor > --- PROPULSION ------- Light Treads Light Treads Armored Heavy Treads > --- UTILITY ---------- Improved Heat Sink Large Storage Unit Weapon Cycler Advanced Thermal Shield Advanced Force Field > --- WEAPON ----------- Quantum Rifle Quantum Rifle > --- INVENTORY -------- Improved Deuterium Engine Light Angular Momentum Engine Compact Battery Matter Compressor Advanced Reaction Control System Relay Coupler [Swarmer] Relay Coupler [Swarmer] Relay Coupler [Grunt] Relay Coupler [Brawler] High-powered Tractor Beam Dispersion Rifle Dispersion Rifle Flak Gun Remote Datajack Powered Hammer [Rating: 71] Favorites ----------- Power Reinforced Deuterium Engine Engine Reinforced Deuterium Engine Power Core Neutrino Core Reactor Particle Reactor Propulsion Armored Treads Treads Armored Treads Leg Carbon-fiber Leg Wheel Armored Wheel Flight Unit VTOL Module Utility Large Storage Unit Device Transmission Jammer Storage Large Storage Unit Processor Advanced Targeting Computer Protection Medium Reactive Plating Weapon Powered Hammer Energy Gun Improved EM Shotgun Energy Cannon Particle Cannon Ballistic Gun Coil Gun Ballistic Cannon Gauss Cannon Launcher Heavy Rocket Launcher Special Weapon Mining Laser Impact Weapon Powered Hammer Special Melee Weapon Datajack Build | -11 -10 -10 -9 -8 -7 -7 -6 -6 ------- Run | Yrd Mat Min Mat Mat Fac DSF Fac Gar Slots Evolved 8 | . . . 2 2 2 . 2 . Power . | . . . . . . . . . Propulsion 2 | . . . 1 1 . . . . Utility 6 | . . . 1 1 2 . 2 . Weapon . | . . . . . . . . . Parts Attached 123 | 7 5 2 7 32 2 7 15 46 Power 11 | 1 . . 1 3 . . 1 5 Engine 8 | 1 . . 1 3 . . 1 2 Core 2 | . . . . . . . . 2 Reactor 1 | . . . . . . . . 1 Propulsion 34 | 2 . . 2 10 . . 2 18 Treads 27 | 2 . . 2 10 . . 2 11 Leg 5 | . . . . . . . . 5 Wheel 1 | . . . . . . . . 1 Hover . | . . . . . . . . . Flight 1 | . . . . . . . . 1 Utility 38 | 2 . 2 2 10 2 3 6 11 Device 22 | 1 . 2 . 7 1 1 1 9 Storage 3 | 1 . . 1 . . . 1 . Processor 2 | . . . . . 1 . 1 . Hackware . | . . . . . . . . . Protection 11 | . . . 1 3 . 2 3 2 Artifact . | . . . . . . . . . Weapon 40 | 2 5 . 2 9 . 4 6 12 Energy Gun 15 | 1 3 . 1 . . 1 . 9 Energy Cannon 5 | . 2 . . 1 . . 1 1 Ballistic Gun 5 | 1 . . . 2 . . 1 1 Ballistic Cannon 7 | . . . . 2 . 2 3 . Launcher 3 | . . . . 2 . 1 . . Special Weapon 1 | . . . 1 . . . . . Impact Weapon 3 | . . . . 1 . . 1 1 Slashing Weapon . | . . . . . . . . . Piercing Weapon . | . . . . . . . . . Special Melee Weapon 1 | . . . . 1 . . . . Unidentified Prototypes 3 | . 1 2 . . . . . . Corrupted Parts 7 | . . . 1 2 . . . 4 System Corruption 22 | . . . 1 13 . . . 8 Parts Lost 44 | . . . . 12 . . 4 28 Power 4 | . . . . . . . 1 3 Propulsion 12 | . . . . 4 . . 1 7 Utility 19 | . . . . 5 . . 2 12 Weapon 9 | . . . . 3 . . . 6 Highest Loss Streak 15 | . . . . 4 . . 1 15 To Critical Strikes . | . . . . . . . . . Average Backups 13 | 2 5 8 13 14 13 14 14 12 Power 1 | . 1 1 1 2 1 1 . . Propulsion . | . . . 1 1 3 2 1 . Utility 5 | . . 2 4 4 4 6 6 7 Weapon 4 | 1 3 4 5 5 4 4 5 3 Tool/Special . | . . . . . . . . . Unused Backups 40 | . 1 . 5 4 . 7 2 21 Power 4 | . . . 1 1 . . . 2 Propulsion 3 | . . . 1 . . 2 . . Utility 23 | . . . 1 3 . 2 2 15 Weapon 9 | . 1 . 2 . . 3 . 3 Tool/Special 1 | . . . . . . . . 1 Average Slot Usage (%) 90 | . 97 100 93 93 96 99 99 72 Engine 6 | . 14 14 10 9 7 7 6 1 Treads 23 | . 28 28 31 34 30 30 26 11 Leg 1 | . . . . . . . . 4 Device 19 | . 13 14 11 17 23 19 20 22 Storage 7 | . 14 14 11 9 7 7 6 5 Processor 6 | . . . . . 3 7 12 3 Protection 8 | . . . 6 6 7 10 12 4 Energy Gun 5 | . 24 28 20 3 . . . 6 Ballistic Gun 2 | . 2 . . 2 7 . 3 1 Ballistic Cannon 2 | . . . . 2 . 11 3 2 Impact Weapon 2 | . . . . 2 . . 3 . Peak Build Rating 71 | 7 12 20 25 37 41 47 68 71 Average Rating 46 | 4 8 17 22 31 40 45 62 46 On Entrance 27 | . 7 12 18 25 35 41 47 59 Naked Turns . | . . . . . . . . . Heaviest Build 96 | 15 17 20 44 55 49 91 96 70 Greatest Support 100 | 40 40 40 63 83 80 80 90 100 Greatest Overweight (x) 16 | 3 . . . 1 . 1 1 16 Average Overweight (x) . | . . . . . . . . 2 Largest Inventory Capacity 15 | 8 8 8 15 15 15 15 15 15 Average Capacity 14 | 7 8 8 14 15 15 15 15 14 Most Carried 15 | 6 8 8 15 15 14 15 15 15 Average Carried 13 | 3 5 7 13 14 13 14 14 12 Final Capacity 15 | 8 8 8 15 15 15 15 15 15 Final Carried 15 | 3 8 8 15 15 13 15 14 15 Class Distribution -------------------- 51% | Mutant 19% | Assassin 18% | Scavenger-Mutant 10% | Skirmisher Dominant Class ---------------- Mutant | -10/Materials Mutant | -10/Mines Mutant | -9/Materials Mutant | -8/Materials Mutant | -7/Factory Mutant | -7/DSF Assassin | -6/Factory Scavenger-Mutant | -6/Garrison Resources | -11 -10 -10 -9 -8 -7 -7 -6 -6 ----------- Run | Yrd Mat Min Mat Mat Fac DSF Fac Gar Matter Collected 4824 | 231 60 . 391 746 . 202 1362 1832 Remotely 356 | . . . . . . . . 356 Salvage Created 3997 | 150 60 . 538 980 . 182 821 1266 Parts 172 | 14 2 . 25 51 . 7 25 48 Haulers Intercepted 4 | . 1 . 2 1 . . . . Recyclers Shooed 3 | . . . . . . . 3 . Parts Field Recycled 16 | . . . . 16 . . . . Retrieved Matter 99 | . . . . 99 . . . . Parts Self-Destructed . | . . . . . . . . . Prevented . | . . . . . . . . . Kills | -11 -10 -10 -9 -8 -7 -7 -6 -6 ------- Run | Yrd Mat Min Mat Mat Fac DSF Fac Gar Combat Hostiles Destroyed 66 | . . . 6 16 . 7 12 25 Melee 2 | . . . . 1 . . . 1 Guns 20 | . . . 6 5 . . 4 5 Cannons 30 | . . . . 6 . 5 4 15 AOE 10 | . . . . 2 . 2 4 2 Classes Destroyed 17 | 2 1 . 6 4 . 1 1 2 Worker 6 | . . . 2 4 . . . . Builder 3 | . . . . 2 . . 1 . Tunneler 4 | 3 . . . 1 . . . . Hauler 4 | . 1 . 2 1 . . . . Recycler 9 | 1 . . 2 2 . . 4 . Operator 2 | . . . 1 1 . . . . Drone 1 | . . . . 1 . . . . Watcher 3 | . . . 1 2 . . . . Swarmer 11 | . . . 3 . . 3 3 2 Grunt 25 | . . . 2 7 . 2 1 13 Brawler 1 | . . . . . . . . 1 Duelist 3 | . . . . 1 . . . 2 Sentry 15 | . . . 1 6 . . 2 6 Hunter 2 | . . . . . . . 2 . Programmer 5 | . . . . . . 1 4 . Heavy 2 | . . . . 1 . 1 . . Behemoth 1 | . . . . . . . . 1 Best Kill Streak 10 | 2 1 . 5 10 . 3 3 6 Combat Bots Only 6 | . . . 2 6 . 3 3 6 Max Kills in Single Turn 3 | 1 1 . 2 3 . 2 3 1 Gunslinging . | . . . . . . . . . Exploded 3 | . . . . 2 . 2 3 1 Melee 1 | . . . . 1 . . . 1 Uniques/NPCs Destroyed . | . . . . . . . . . Combat | -11 -10 -10 -9 -8 -7 -7 -6 -6 -------- Run | Yrd Mat Min Mat Mat Fac DSF Fac Gar Hostile Shots Fired 825 | . . . 15 219 . 31 154 406 Missed 251 | . . . 3 52 . 8 52 136 Hits 574 | . . . 12 167 . 23 102 270 Melee 9 | . . . . 3 . . . 6 Projectile 565 | . . . 12 164 . 23 102 264 Critical Strikes 29 | . . . . 17 . 2 2 8 Part Disruptions 1 | . . . . . . . 1 . Damage Taken 9630 | . . . 180 2754 . 673 1819 4204 Core 1143 | . . . 22 251 . 20 129 721 Absorbed by Shields 385 | . . . . 112 . . 109 164 Ignored by Resistances 611 | . . . . 108 . 47 183 273 Core Remaining (%) 89 | 100 . 100 94 54 . 97 . . Volleys Fired 269 | 4 2 . 21 64 . 19 54 105 Largest 2 | 2 2 . 2 2 . 2 2 2 Hottest 188 | 60 90 . 145 131 . 80 80 188 Shots Fired 503 | 8 4 . 41 128 . 35 106 181 Gun 244 | 8 4 . 38 56 . . 49 89 Cannon 240 | . . . . 64 . 34 57 85 Launcher 16 | . . . . 8 . 1 . 7 Special 3 | . . . 3 . . . . . Kinetic 334 | 4 . . . 75 . 34 106 115 Thermal 82 | . . . 3 25 . . . 54 Explosive 15 | . . . . 7 . 1 . 7 Electromagnetic 72 | 4 4 . 38 21 . . . 5 Robot Hit Streak 16 | 4 6 . 8 9 . 11 12 16 Robot Miss Streak 6 | . 2 . 3 6 . 2 4 5 Penetration Max 1 | . . . . . . . 1 1 Secondary Targets 1 | . . . . . . . . 1 Max Gunslinging Chain 1 | . . . . . . . . 1 Shots Hit Robots 362 | 4 3 . 24 97 . 25 78 131 Core Hits 160 | 4 2 . 22 47 . 10 21 54 Critical Kills 1 | . . . . . . . . 1 Critical Parts Destroyed 10 | . . . . 3 . . 5 2 Critical Strikes 29 | . . . . 3 . 4 11 11 Destroy 5 | . . . . . . . 4 1 Blast 18 | . . . . . . 4 6 8 Smash 6 | . . . . 3 . . 1 2 Melee Attacks 77 | . . . . 16 . . 46 15 Impact 75 | . . . . 14 . . 46 15 Slashing . | . . . . . . . . . Piercing . | . . . . . . . . . Sneak Attacks 7 | . . . . . . . 7 . Combat Hostiles . | . . . . . . . . . Follow-up Attacks . | . . . . . . . . . Damage Inflicted 12598 | 56 70 . 547 2759 . 900 3619 4647 Guns 3575 | 56 70 . 429 748 . . 760 1512 Cannons 4540 | . . . . 854 . 703 1375 1608 Explosions 2836 | . . . 118 832 . 197 888 801 Melee 1627 | . . . . 321 . . 580 726 Ramming 20 | . . . . 4 . . 16 . Kinetic 5803 | . . . . 994 . 703 2135 1971 Thermal 2398 | . . . 118 461 . . 800 1019 Explosive 1636 | . . . . 638 . 197 . 801 Electromagnetic 1114 | 56 70 . 429 341 . . 88 130 Impact 1627 | . . . . 321 . . 580 726 Slashing . | . . . . . . . . . Piercing . | . . . . . . . . . Highest Corruption 20 | . . . 1 13 . 1 8 20 Average Corruption 8 | . . . 1 9 . 1 3 14 Corruption Purged . | . . . . . . . . . Corruption Blocked . | . . . . . . . . . Effects 175 | . . . 4 29 . 2 42 98 Message Errors 44 | . . . 1 8 . 1 10 24 Matter Fused 46 | . . . 1 8 . . 12 25 Heat Flow Errors 19 | . . . . 4 . . 4 11 Energy Discharges 27 | . . . . 4 . . 6 17 Parts Rejected 2 | . . . . . . . . 2 Parts Fused 1 | . . . . . . . . 1 Data Loss (minor) 9 | . . . 1 2 . . 2 4 Data Loss (major) 9 | . . . . 1 . . 4 4 Misfires 8 | . . . . 1 . 1 2 4 Alerts 3 | . . . . . . . 1 2 Misdirections 2 | . . . . 1 . . . 1 Weapon Failures 5 | . . . 1 . . . 1 3 Overload Shots . | . . . . . . . . . Overflow Damage 848 | . . . 6 108 . 2 512 220 Projectiles 249 | . . . . . . 2 231 16 Explosions 247 | . . . 6 32 . . 161 48 Melee 352 | . . . . 76 . . 120 156 Knockbacks 28 | . . . . 1 . . 16 11 Impact 2 | . . . . . . . 1 1 Kinetic 25 | . . . . 1 . . 14 10 Secondary 1 | . . . . . . . 1 . Self-Inflicted Damage 1178 | . . . 68 189 . . 606 315 Shots 22 | . . . 2 5 . . 9 6 Rammed . | . . . . . . . . . Targets Rammed 1 | . . . . 1 . . . . Kicked . | . . . . . . . . . Crushed 1 | . . . . 1 . . . . Highest Temperature 360 | . 60 . 132 261 . 12 220 360 Average Temperature 66 | . 30 . 37 59 . 12 53 90 Received Heat Transfer 2566 | . . . 9 987 . 63 133 1374 Effects 3 | . . . . . . . . 3 Shutdowns 1 | . . . . . . . . 1 Energy Bleed 2 | . . . . . . . . 2 Siege Activations . | . . . . . . . . . Martial Activations . | . . . . . . . . . Shielding Activations . | . . . . . . . . . Robots Disrupted . | . . . . . . . . . Combat Hostiles . | . . . . . . . . . Robots Corrupted 6 | . . . . 2 . . 1 3 Combat Hostiles 4 | . . . . 2 . . . 2 Parts Fried 16 | . 2 . 1 4 . . 6 3 Impact Corruptions 12 | . . . . 3 . . 4 5 Robots Melted . | . . . . . . . . . Combat Hostiles . | . . . . . . . . . Parts Melted 1 | . . . . . . . . 1 Heat Transferred 2949 | . . . 150 568 . . 400 1831 Parts Sabotaged . | . . . . . . . . . Parts Stolen . | . . . . . . . . . Parts Stripped . | . . . . . . . . . Power Chain Reactions 4 | . . . 2 2 . . . . Alert | -11 -10 -10 -9 -8 -7 -7 -6 -6 ------- Run | Yrd Mat Min Mat Mat Fac DSF Fac Gar Maximum Alert Level 4 | . . . 1 1 . 1 2 4 Low Security (%) 53 | 100 100 100 87 97 100 75 60 . Level 1 13 | . . . 12 2 . 24 24 6 Level 2 13 | . . . . . . . 14 26 Level 3 17 | . . . . . . . . 59 Level 4 2 | . . . . . . . . 7 Level 5 . | . . . . . . . . . High Security . | . . . . . . . . . Max Security . | . . . . . . . . . Peak Influence 1353 | 10 7 . 309 206 76 249 437 1353 Initial 311 | . . . . 126 76 53 130 311 Average 321 | 1 . . 56 129 76 142 164 795 Influence Increases 3503 | 20 7 . 465 642 . 196 771 1402 Destroy 0b10 Robot/C 1420 | . . . 220 300 . 140 240 520 Destroy 0b10 Robot/NC 175 | 20 5 . 40 70 . . 25 15 Destroy Leader 304 | . 2 . 46 106 . 30 80 40 Allied During Kill 26 | . . . 19 . . . . 7 Successful Hack 94 | . . . 38 9 . . 26 21 Disable Machine 285 | . . . . . . 15 255 15 Anti-Garrison Action 550 | . . . . . . . . 550 Destroy Structure 319 | . . . 12 52 . 11 115 129 Partial Spotted 15 | . . . . 15 . . . . Lose Combat Pursuer 315 | . . . 90 90 . . 30 105 Influence Decreases 2150 | 20 7 . 164 775 92 23 575 494 Entered New Map 543 | . . . . 175 92 23 119 134 Time Decay 1020 | 20 7 . 144 433 . . 416 . Lost Part 400 | . . . . 80 . . 40 280 Lost Ally 100 | . . . 20 . . . . 80 Purge Threat 87 | . . . . 87 . . . . Squads Dispatched 11 | . . . 1 2 . 1 7 . Investigation 2 | . . . . 1 . . 1 . Extermination 6 | . . . . . . . 6 . Reinforcement 3 | . . . 1 1 . 1 . . Assault . | . . . . . . . . . Garrison . | . . . . . . . . . Intercept . | . . . . . . . . . Searches Triggered . | . . . . . . . . . Construction Impeded . | . . . . . . . . . Haulers Reinforced . | . . . . . . . . . Active Scanning Responses . | . . . . . . . . . Cargo Convoy Interrupts . | . . . . . . . . . Stealth | -11 -10 -10 -9 -8 -7 -7 -6 -6 --------- Run | Yrd Mat Min Mat Mat Fac DSF Fac Gar Distress Signals 3 | . . . 2 1 . . . . Communications Jammed 19 | . . . . 17 . . 2 . Distress Signals 11 | . . . . 9 . . 2 . Times Spotted 102 | . . . 18 30 . 7 15 32 Peak Tracking Total 5 | . . . 5 5 . 3 3 4 Tactical Retreats 18 | . . . 4 6 . . 2 6 Traps | -11 -10 -10 -9 -8 -7 -7 -6 -6 ------- Run | Yrd Mat Min Mat Mat Fac DSF Fac Gar Traps Triggered 7 | . 1 . . . . 1 . 5 Indirectly . | . . . . . . . . . Trap Hack Attempts . | . . . . . . . . . Triggered . | . . . . . . . . . Disarmed . | . . . . . . . . . Reprogrammed . | . . . . . . . . . Reused . | . . . . . . . . . Traps Extracted . | . . . . . . . . . Installed . | . . . . . . . . . Triggered . | . . . . . . . . . Most Traps Carried 1 | . . . . . . . . 1 Machines | -11 -10 -10 -9 -8 -7 -7 -6 -6 ---------- Run | Yrd Mat Min Mat Mat Fac DSF Fac Gar Machines Disabled 22 | . . . . . . 1 17 4 Max in Single Turn 5 | . . . . . . 1 5 1 Garrison Relay 3 | . . . . . . . . 3 Machines Repaired . | . . . . . . . . . Machines Dismantled . | . . . . . . . . . Machines Sabotaged . | . . . . . . . . . Overloaded Fab Kills . | . . . . . . . . . Hacking | -11 -10 -10 -9 -8 -7 -7 -6 -6 --------- Run | Yrd Mat Min Mat Mat Fac DSF Fac Gar Machines Accessed 25 | . . 1 5 7 1 . 9 2 Terminals 15 | . . . 4 6 1 . 2 2 Fabricators 2 | . . . . . . . 2 . Repair Stations 1 | . . . . . . . 1 . Recycling Units 3 | . . . . . . . 3 . Scanalyzers 2 | . . . 1 1 . . . . Garrison Access 1 | . . . . . . . 1 . Total Hacks 58 | . . 1 15 22 1 . 16 3 Successful 26 | . . 1 8 6 1 . 8 2 Failed 32 | . . . 7 16 . . 8 1 Catastrophic 7 | . . . 2 3 . . 2 . Database Lockouts . | . . . . . . . . . Manual 22 | . . . 9 12 . . 1 . Terminals 39 | . . . 11 21 1 . 3 3 Fabricators 3 | . . . . . . . 3 . Repair Stations 2 | . . . . . . . 2 . Recycling Units 7 | . . . . . . . 7 . Scanalyzers 5 | . . . 4 1 . . . . Garrison Access 1 | . . . . . . . 1 . Terminal Hacks 16 | . . 1 5 6 1 . 1 2 Prototype ID Bank 1 | . . . 1 . . . . . Open Door 2 | . . 1 . . . . . 1 Open DSF 2 | . . . . . 1 . 1 . Level Access Points 1 | . . . 1 . . . . . Emergency Access Points 1 | . . . . . . . . 1 Terminal Index 2 | . . . 1 1 . . . . Repair Station Index 1 | . . . 1 . . . . . Unreport Threat 1 | . . . . 1 . . . . Locate Traps 1 | . . . . 1 . . . . Patrol Status 1 | . . . 1 . . . . . Garrison Status 1 | . . . . 1 . . . . Registered Components 1 | . . . . 1 . . . . Zone Layout 1 | . . . . 1 . . . . Fabricator Hacks 1 | . . . . . . . 1 . Network Status 1 | . . . . . . . 1 . Repair Station Hacks 1 | . . . . . . . 1 . Scan Component 1 | . . . . . . . 1 . Recycling Unit Hacks 4 | . . . . . . . 4 . Process 1 | . . . . . . . 1 . Report Inventory 1 | . . . . . . . 1 . Retrieve Matter 1 | . . . . . . . 1 . Retrieve Components 1 | . . . . . . . 1 . Scanalyzer 3 | . . . 3 . . . . . Insert Component 2 | . . . 2 . . . . . Analyze 1 | . . . 1 . . . . . Garrison Access Hacks 1 | . . . . . . . 1 . Unlock Access 1 | . . . . . . . 1 . Unauthorized Hacks . | . . . . . . . . . Terminals . | . . . . . . . . . Fabricators . | . . . . . . . . . Repair Stations . | . . . . . . . . . Recycling Units . | . . . . . . . . . Scanalyzers . | . . . . . . . . . Garrison Access . | . . . . . . . . . Data Cores Recovered 1 | . . . . 1 . . . . Used . | . . . . . . . . . Hacking Detections 22 | . . . 5 7 . . 8 2 Full Trace Events 2 | . . . . 1 . . 1 . Feedback Events . | . . . . . . . . . Feedback Blocked . | . . . . . . . . . Robot Schematics Acquired . | . . . . . . . . . Robots Built . | . . . . . . . . . Authchips . | . . . . . . . . . Time . | . . . . . . . . . Total Robot Build Rating . | . . . . . . . . . Part Schematics Acquired 1 | . . . 1 . . . . . Parts Built . | . . . . . . . . . Authchips . | . . . . . . . . . Time . | . . . . . . . . . Total Part Build Rating . | . . . . . . . . . Parts Repaired . | . . . . . . . . . Time . | . . . . . . . . . Parts Recycled . | . . . . . . . . . Recycled Matter 6 | . . . . . . . 6 . Retrieved Matter 6 | . . . . . . . 6 . Retrieved Components 3 | . . . . . . . 3 . Parts Scanalyzed 1 | . . . 1 . . . . . Part Schematics Acquired 1 | . . . 1 . . . . . Parts Damaged . | . . . . . . . . . Bothacking | -11 -10 -10 -9 -8 -7 -7 -6 -6 ------------ Run | Yrd Mat Min Mat Mat Fac DSF Fac Gar Used RIF Installer . | . . . . . . . . . Robots Hacked 1 | . . . . 1 . . . . Non-combat . | . . . . . . . . . Combat 1 | . . . . 1 . . . . Robot Hacks Applied 1 | . . . . 1 . . . . parse_system 1 | . . . . 1 . . . . Relay Couplers Released 12 | . . . . . . . . 12 Machine Destruction 12 | . . . . . . . . 12 Fabnet Peak Effective % . | . . . . . . . . . Robots Rewired 4 | . . . . . . . . 4 Allies Hacked . | . . . . . . . . . Hacks Repelled . | . . . . . . . . . Allies | -11 -10 -10 -9 -8 -7 -7 -6 -6 -------- Run | Yrd Mat Min Mat Mat Fac DSF Fac Gar Total Allies 4 | . . . . . . . . 4 Largest Group 4 | . . . . . . . . 4 Highest-Rated Group 167 | . . . . . . . . 167 Highest-Rated Ally 46 | . . . . . . . . 46 Total Orders . | . . . . . . . . . Ally Attacks 76 | . . . 64 4 . . . 8 Total Damage 538 | . . . 291 . . . . 247 Kills 6 | . . . 5 . . . . 1 Allies Corrupted . | . . . . . . . . . Allies Melted . | . . . . . . . . . Intel | -11 -10 -10 -9 -8 -7 -7 -6 -6 ------- Run | Yrd Mat Min Mat Mat Fac DSF Fac Gar Active Infowar (turns) 4781 | 30 181 26 . 967 8 303 3019 247 Sensors 2406 | . . 2 . . . . 2199 205 Terrain 3532 | . . . . . 8 303 3013 208 Seismic 235 | 30 181 24 . . . . . . Jamming 4313 | . . . . 967 8 74 3018 246 Robot Analysis Total . | . . . . . . . . . Derelict Logs Recovered . | . . . . . . . . . Drone Launches 21 | . . . 17 4 . . . . Drone Recoveries 18 | . . . 16 2 . . . . Exploration | -11 -10 -10 -9 -8 -7 -7 -6 -6 ------------- Run | Yrd Mat Min Mat Mat Fac DSF Fac Gar Turns Passed 7919 | 85 186 181 627 1234 8 303 3019 2276 Spaces Moved 3073 | 51 102 109 310 517 3 104 1130 747 Core 123 | 31 . . . . . . . 92 Treads 2647 | 20 102 109 310 517 3 104 1130 352 Legs 179 | . . . . . . . . 179 Wheels 124 | . . . . . . . . 124 Hover . | . . . . . . . . . Flight . | . . . . . . . . . Fastest Speed 50 | 50 160 160 160 160 170 170 167 50 Average Speed 197 | 115 160 160 160 166 170 209 210 228 Slowest Speed 850 | 200 160 160 160 250 170 250 250 850 Overloaded Moves . | . . . . . . . . . Propulsion Burnouts . | . . . . . . . . . Robots Hopped . | . . . . . . . . . Potential Cave-ins . | . . . . . . . . . Cave-ins Triggered 1 | . . . . . . . 1 . Exploration Rate (%) 36 | 5 19 35 45 46 1 90 21 63 Regions Visited 8 Branch Regions 1 Pre-discovered Areas . | . . . . . . . . . Known Exits Taken 3 | . . . 1 . 1 . 1 . Unknown Exits Taken 4 | 1 1 1 . 1 . . . . Scrap Searched . | . . . . . . . . . Spaces Dug 38 | . . . 3 3 . . 32 . Terrain Destroyed 302 | . . . 9 50 . 13 129 101 Melee 35 | . . . . 3 . . 32 . Projectile 29 | . . . 3 1 . . 16 9 AOE 238 | . . . 6 46 . 13 81 92 Terrain Rammed 2 | . . . . . . . 2 . Walls Destroyed . | . . . . . . . . . Machines Disabled . | . . . . . . . . . Actions | -11 -10 -10 -9 -8 -7 -7 -6 -6 --------- Run | Yrd Mat Min Mat Mat Fac DSF Fac Gar Total 4309 | 68 120 117 394 730 5 163 1578 1134 Wait 419 | . . . 31 40 . 2 279 67 Move 3067 | 50 101 108 309 516 3 103 1130 747 Hop . | . . . . . . . . . Pick Up 96 | 7 2 1 11 21 . 11 10 33 Fast Attach 95 | 3 8 3 6 17 . 8 7 43 Attach 35 | 4 . . . 10 2 . 8 11 Detach 20 | . 5 1 1 2 . 1 4 6 Swap 70 | . . . 5 20 . 1 24 20 Drop 112 | . 2 4 10 23 . 16 14 43 Fire 269 | 4 2 . 21 64 . 19 54 105 Melee 77 | . . . . 16 . . 46 15 Ram 2 | . . . . . . . 2 . Kick . | . . . . . . . . . Crush 1 | . . . . 1 . . . . Escape Stasis 12 | . . . . . . 2 . 10 Rewire 34 | . . . . . . . . 34 Trap . | . . . . . . . . . Miscellaneous . | . . . . . . . . . Route ------- -11/Scrapyard -10/Materials -10/Mines -9/Materials (discovered 3 exits: *Mat x3) -8/Materials -7/Factory -7/DSF -6/Factory (discovered 2 exits: *Fac / Gar) -6/Garrison (discovered 1 exit: [*Fac]) History --------- Turn | Location | Event 3 | -11/Scrapyard | Discovered new exit (range 15) 86 | -11/Scrapyard | Entered Materials 175 | -10/Materials | Discovered new exit (range 12) 272 | -10/Materials | Entered Mines 289 | -10/Mines | Found the Drone Emporium 297 | -10/Mines | Found Prototype Device 297 | -10/Mines | Identified Thief Drone Bay 321 | -10/Mines | Build established: Mutant 380 | -10/Mines | Found a damaged Exp. Sensor Array with a note attached 384 | -10/Mines | Found Prototype Device 384 | -10/Mines | Identified Exp. Sensor Array 447 | -10/Mines | Discovered new exit (range 3) 453 | -10/Mines | Entered Materials 453 | -9/Materials | Evolved 2 slots: Propulsion x1, Utility x1 665 | -9/Materials | Identified exit to Materials 1080 | -9/Materials | Entered another Materials area 1080 | -8/Materials | Evolved 2 slots: Propulsion x1, Utility x1 1367 | -8/Materials | Lost 4 parts (2u2w) 1501 | -8/Materials | Lost 4 parts (2n2u) 1694 | -8/Materials | System corruption reached 10% 1720 | -8/Materials | Lost 4 parts (2n1u1w) 2022 | -8/Materials | Discovered new exit (range 3) 2314 | -8/Materials | Entered Factory 2314 | -7/Factory | Evolved 2 slots: Utility x2 2322 | -7/Factory | Identified exit to DSF 2322 | -7/Factory | Entered DSF 2379 | -7/DSF | Additional patrols routed to DSF 2569 | -7/DSF | Discovered new exit (range 16) 2625 | -7/DSF | Entered Factory 2625 | -6/Factory | Evolved 2 slots: Utility x2 3171 | -6/Factory | Build established: Assassin 3703 | -6/Factory | Discovered new exit (range 5) 3723 | -6/Factory | Identified exit to Factory 5040 | -6/Factory | Crushed by falling debris 5308 | -6/Factory | Build established: Mutant 5644 | -6/Factory | Identified exit to Garrison 5644 | -6/Factory | Entered Garrison 5878 | -6/Garrison | Triggered checkpoint 5883 | -6/Garrison | System corruption reached 10% 5944 | -6/Garrison | Lost 6 parts (1p3n2u) 5994 | -6/Garrison | Garrison Relay disabled 6209 | -6/Garrison | Build established: Scavenger-Mutant 6226 | -6/Garrison | Triggered checkpoint 6235 | -6/Garrison | Triggered checkpoint 6279 | -6/Garrison | Lost 4 allies 6480 | -6/Garrison | Triggered checkpoint 6525 | -6/Garrison | Garrison Relay disabled 6555 | -6/Garrison | Lost 6 parts (4u2w) 6616 | -6/Garrison | Discovered new exit (range 5) 6687 | -6/Garrison | Spotted B-75 Beast 6727 | -6/Garrison | Core integrity fell below 50% 6745 | -6/Garrison | Core integrity fell below 20% 6756 | -6/Garrison | Destroyed B-75 Beast 6786 | -6/Garrison | Lost 15 parts (2p4n5u4w) 7021 | -6/Garrison | Build established: Mutant 7708 | -6/Garrison | Triggered checkpoint 7774 | -6/Garrison | Build established: Scavenger-Mutant 7781 | -6/Garrison | Garrison Relay disabled 7894 | -6/Garrison | Spotted B-75 Beast 7920 | -6/Garrison | Destroyed by B-75 Beast with Heavy Machine Gun Last Messages --------------- 07857_ Dropped Imp. Remote Force Field. 07858_ Acquired Adv. Force Field. 07861_ Dropped Hvy. Laser. 07871_ Dropped Matter Compressor. 07871_ Acquired Matter Compressor. 07872_ System corrupted: Heat flow error (+132). 07879_ Dropped Matter Compressor. 07880_ Extracted 250 matter. 07880_ Acquired Matter Compressor. 07883_ Dropped Autogun. 07884_ Acquired Quantum Rifle. 07888_ System corrupted: Matter fused (-9). 07889_ Acquired Quantum Rifle. 07890_ Triggered Alarm Trap. 07890_ An alarm sounds. 07894_ ALERT: Garrison interior compromised. 07915_ System corrupted: Component data lost. 07918_ Machine disabled. 07918_ Dropped Lgt. Angular Momentum Engine. 07919_ System corrupted: Quantum Rifle failed to cycle. Map ----- +----------------------------------------------------+ | ?????????????????????????????? | | ?????+???????????????????????? | | ?????????????????????????????? | | ?????????????????????????????? | | ?????????????????????????????? | | ?????????????????????????????? | | ?????????????????????????????? | | ?????????????????????????????? | | ?????????????????????????????? | | ?????????????????????????????? | | ?????????????????????????????? | | ?????????????????????????????? | | ?????????????????????????????? | | ?????????????????????????????? | | ?????????????????????????????? | | ?????????????????????????????? | | ???#######???????????????????? | | #### # #???????????????????? | | #?????????????????????? | | #### #???????????????????? | | ## ##???????????????????? | | # ### ##???????############?? | | # #?####????????#""""""""""#?? | | # #???????????###"=]BBY["""#?? | | #=#???????????# BB "#?? | | #=##??#######?# #### @"#?? | | [! #??#"" !"#?# # % !"#?? | | [% ##### !#### # =="#?? | | [* ] " #### ^"#?? | | = + [ ! ==""#?? | | #################" ! [= """#?? | | ????????????????#""""""""""#?? | | ????????????????############?? | | ?????????????????????????????? | | ?????????????????????????????? | | ?????????????????????????????? | | ?????????????????????????????? | | ?????????????????????????????? | | ?????????????????????????????? | | ?????????????????????????????? | | ?????????????????????????????? | | ?????????????????????????????? | | ?????????????????????????????? | | ?????????????????????????????? | | ?????????????????????????????? | | ?????????????????????????????? | | ?????????????????????????????? | | ?????????????????????????????? | | ?????????????????????????????? | | ?????????????????????????????? | +----------------------------------------------------+ Best States ------------- Heat Dissipation 56 Energy Generation 23 Energy Capacity 340 Matter Stores 300 Matter Capacity 300 Sight Range 16 Robot Scan Range 20 Terrain Scan Range 16 Terrain Scan Density 10 Jamming Range 12 Armor Coverage 450 Resistance: KI 30 Resistance: TH 30 Weapon Cycling 15 Evasion (%) 55 Targeting Accuracy 8 Recoil Reduction 4 Kinecelleration 40 Item Schematics ----------------- Mni. Grenade Launcher | -9/Materials | Scanalyzed Robot Schematics ------------------ None Fabricated ------------ Nothing Repaired ---------- Nothing Alien Tech Used ----------------- None Achievements -------------- None Challenges ------------ None Game ------ Seed AluminumSurveybotArray Manual? 0 Play Time 01:22:49 Cumulative 63.0 hours Start 2025.10.19 @ 07:17:47 End 2025.10.19 @ 08:40:17 Sessions 1 Manual Loads 0 Difficulty Rogue Special Mode None Game No. 55 Rogue 55 Adventurer 0 Explorer 0 Win Type - Total 0 Types 0/0/0/0/0/0/0/0/0/0 Lore% 28 Gallery% 42 Achievement% 36 Wizard Run 0 Options --------- Layout 0 ASCII 0 Keyboard 0 Movement Mouse Keybinds 0 Fullscreen 1 Font 36/Smallcaps Map View 76x50 Zoom Use 0% Tactical HUD 1 Map Filters NONE Filters NONE Steam 1 RUN: 901f1ace-91ea-4447-8ed9-58bb86762f88